[Event "Titled Tuesday Blitz August 31 2021"]
[White "Harshavardhan G B"]
[Black "Shishkov, Andrei"]
[WhiteFideId "25059009"]
[BlackFideId "4500563"]
[WhiteElo "1825"]
[BlackElo "2322"]
[Result "1-0"]
[Round "11"]
[TimeControl "180+1"]
[Date "2021.08.31"]
[WhiteClock "0:00:47"]
[BlackClock "0:00:01"]

1. f4 {[%clk 0:02:55]}  Nf6 {[%clk 0:02:57]} 2. Nf3 {[%clk 0:02:55]}  g6 {[%clk 0:02:56]} 3. g3 {[%clk 0:02:55]}  b6 {[%clk 0:02:55]} 4. Bg2 {[%clk 0:02:55]}  Bb7 {[%clk 0:02:56]} 5. O-O {[%clk 0:02:55]}  Bg7 {[%clk 0:02:55]} 6. d3 {[%clk 0:02:55]}  d5 {[%clk 0:02:54]} 7. Nbd2 {[%clk 0:02:55]}  O-O {[%clk 0:02:49]} 8. h3 {[%clk 0:02:35]}  c5 {[%clk 0:02:26]} 9. c4 {[%clk 0:02:32]}  d4 {[%clk 0:02:22]} 10. a3 {[%clk 0:02:27]}  Nc6 {[%clk 0:02:16]} 11. Rb1 {[%clk 0:02:25]}  a5 {[%clk 0:02:13]} 12. b3 {[%clk 0:02:24]}  Qc7 {[%clk 0:02:12]} 13. Kh2 {[%clk 0:02:20]}  Rae8 {[%clk 0:02:09]} 14. Ne4 {[%clk 0:02:02]}  Nxe4 {[%clk 0:01:47]} 15. dxe4 {[%clk 0:02:03]}  e5 {[%clk 0:01:40]} 16. f5 {[%clk 0:01:59]}  gxf5 {[%clk 0:01:38]} 17. Nh4 {[%clk 0:01:58]}  fxe4 {[%clk 0:01:21]} 18. Bxe4 {[%clk 0:01:55]}  Ne7 {[%clk 0:01:18]} 19. Qd3 {[%clk 0:01:53]}  f5 {[%clk 0:00:47]} 20. Bxb7 {[%clk 0:01:41]}  Qxb7 {[%clk 0:00:47]} 21. Bg5 {[%clk 0:01:41]}  e4 {[%clk 0:00:43]} 22. Qd2 {[%clk 0:01:39]}  e3 {[%clk 0:00:31]} 23. Qe1 {[%clk 0:01:30]}  Bf6 {[%clk 0:00:24]} 24. Bxf6 {[%clk 0:01:27]}  Rxf6 {[%clk 0:00:25]} 25. b4 {[%clk 0:01:26]}  axb4 {[%clk 0:00:23]} 26. axb4 {[%clk 0:01:27]}  Qe4 {[%clk 0:00:20]} 27. bxc5 {[%clk 0:01:24]}  bxc5 {[%clk 0:00:21]} 28. Rb5 {[%clk 0:01:19]}  Qe5 {[%clk 0:00:18]} 29. Qa5 {[%clk 0:01:14]}  Rc8 {[%clk 0:00:17]} 30. Nf3 {[%clk 0:01:12]}  Qd6 {[%clk 0:00:17]} 31. Rfb1 {[%clk 0:01:07]}  Rg6 {[%clk 0:00:17]} 32. Rg1 {[%clk 0:01:05]}  h5 {[%clk 0:00:16]} 33. Nh4 {[%clk 0:01:05]}  Rg5 {[%clk 0:00:16]} 34. Rb6 {[%clk 0:01:03]}  Qc7 {[%clk 0:00:15]} 35. Qa6 {[%clk 0:01:03]}  Kf7 {[%clk 0:00:13]} 36. Rh6 {[%clk 0:01:01]}  Rcg8 {[%clk 0:00:10]} 37. Qf6+ {[%clk 0:00:58]}  Ke8 {[%clk 0:00:10]} 38. Rh8 {[%clk 0:00:58]}  Rxh8 {[%clk 0:00:06]} 39. Qxg5 {[%clk 0:00:57]}  Rg8 {[%clk 0:00:05]} 40. Qxh5+ {[%clk 0:00:57]}  Kd8 {[%clk 0:00:05]} 41. Nxf5 {[%clk 0:00:57]}  Nxf5 {[%clk 0:00:03]} 42. Qxf5 {[%clk 0:00:58]}  Qd6 {[%clk 0:00:03]} 43. Qe4 {[%clk 0:00:56]}  Re8 {[%clk 0:00:02]} 44. Qa8+ {[%clk 0:00:55]}  Kd7 {[%clk 0:00:03]} 45. Qb7+ {[%clk 0:00:55]}  Ke6 {[%clk 0:00:03]} 46. Rf1 {[%clk 0:00:54]}  Re7 {[%clk 0:00:02]} 47. Qe4+ {[%clk 0:00:52]}  Kd7 {[%clk 0:00:02]} 48. Qb7+ {[%clk 0:00:52]}  Qc7 {[%clk 0:00:02]} 49. Qb5+ {[%clk 0:00:50]}  Qc6 {[%clk 0:00:02]} 50. Qb8 {[%clk 0:00:50]}  Qc7 {[%clk 0:00:02]} 51. Qg8 {[%clk 0:00:49]}  Qe5 {[%clk 0:00:01]} 52. Rf8 {[%clk 0:00:47]} 1-0


[Site "https://www.chess.com"]

[Event "Titled Tuesday Blitz August 31 2021"]
[White "Harutjunyan, Gevorg"]
[Black "Sjugirov, Sanan"]
[WhiteFideId "13300873"]
[BlackFideId "4189302"]
[WhiteElo "2498"]
[BlackElo "2472"]
[Result "1-0"]
[Round "11"]
[TimeControl "180+1"]
[Date "2021.08.31"]
[WhiteClock "0:00:24"]
[BlackClock "0:00:03"]

1. e4 {[%clk 0:03:00]}  c5 {[%clk 0:02:59]} 2. Nc3 {[%clk 0:02:58]}  Nc6 {[%clk 0:02:59]} 3. Bb5 {[%clk 0:02:57]}  Nd4 {[%clk 0:02:59]} 4. Bc4 {[%clk 0:02:56]}  e6 {[%clk 0:02:53]} 5. Nge2 {[%clk 0:02:55]}  a6 {[%clk 0:02:53]} 6. a4 {[%clk 0:02:55]}  Ne7 {[%clk 0:02:51]} 7. O-O {[%clk 0:02:51]}  Nec6 {[%clk 0:02:51]} 8. d3 {[%clk 0:02:51]}  Be7 {[%clk 0:02:45]} 9. f4 {[%clk 0:02:49]}  O-O {[%clk 0:02:45]} 10. f5 {[%clk 0:02:46]}  Bf6 {[%clk 0:02:43]} 11. Ng3 {[%clk 0:02:37]}  Be5 {[%clk 0:02:31]} 12. Bf4 {[%clk 0:02:31]}  Qh4 {[%clk 0:02:19]} 13. Qd2 {[%clk 0:02:25]}  Bxf4 {[%clk 0:02:12]} 14. Rxf4 {[%clk 0:02:23]}  Qh6 {[%clk 0:02:12]} 15. Raf1 {[%clk 0:02:17]}  Ne5 {[%clk 0:01:58]} 16. Qc1 {[%clk 0:02:00]}  Rb8 {[%clk 0:01:39]} 17. a5 {[%clk 0:01:56]}  Ndc6 {[%clk 0:01:29]} 18. Qa1 {[%clk 0:01:52]}  d6 {[%clk 0:01:07]} 19. Nce2 {[%clk 0:01:36]}  exf5 {[%clk 0:00:57]} 20. exf5 {[%clk 0:01:32]}  Nxc4 {[%clk 0:00:55]} 21. dxc4 {[%clk 0:01:29]}  Bd7 {[%clk 0:00:54]} 22. Nc3 {[%clk 0:01:26]}  Rbe8 {[%clk 0:00:43]} 23. Nce4 {[%clk 0:01:22]}  Ne5 {[%clk 0:00:36]} 24. b3 {[%clk 0:01:22]}  Bc6 {[%clk 0:00:33]} 25. f6 {[%clk 0:01:18]}  g5 {[%clk 0:00:30]} 26. Rf5 {[%clk 0:01:15]}  g4 {[%clk 0:00:20]} 27. Nxd6 {[%clk 0:01:09]}  Qd2 {[%clk 0:00:16]} 28. Nge4 {[%clk 0:01:01]}  Qe3+ {[%clk 0:00:12]} 29. Nf2 {[%clk 0:00:58]}  Re6 {[%clk 0:00:12]} 30. Qd1 {[%clk 0:00:46]}  Rd8 {[%clk 0:00:09]} 31. Rxe5 {[%clk 0:00:44]}  Rxe5 {[%clk 0:00:07]} 32. Qxg4+ {[%clk 0:00:45]}  Rg5 {[%clk 0:00:07]} 33. Nf5 {[%clk 0:00:42]}  Rxg4 {[%clk 0:00:02]} 34. Nxe3 {[%clk 0:00:41]}  Rg6 {[%clk 0:00:03]} 35. Nd3 {[%clk 0:00:39]}  Rd4 {[%clk 0:00:02]} 36. Ne5 {[%clk 0:00:36]}  Rg5 {[%clk 0:00:02]} 37. Nxc6 {[%clk 0:00:34]}  bxc6 {[%clk 0:00:03]} 38. Nf5 {[%clk 0:00:31]}  Rd2 {[%clk 0:00:03]} 39. g3 {[%clk 0:00:28]}  h5 {[%clk 0:00:03]} 40. h4 {[%clk 0:00:26]}  Rg6 {[%clk 0:00:01]} 41. Ne7+ {[%clk 0:00:26]}  Kf8 {[%clk 0:00:02]} 42. Nxg6+ {[%clk 0:00:25]}  fxg6 {[%clk 0:00:03]} 43. Rf2 {[%clk 0:00:26]}  Rxf2 {[%clk 0:00:02]} 44. Kxf2 {[%clk 0:00:26]}  Kf7 {[%clk 0:00:03]} 45. Kf3 {[%clk 0:00:26]}  Kxf6 {[%clk 0:00:02]} 46. Kf4 {[%clk 0:00:27]}  Ke6 {[%clk 0:00:02]} 47. c3 {[%clk 0:00:27]}  Kf6 {[%clk 0:00:02]} 48. b4 {[%clk 0:00:26]}  cxb4 {[%clk 0:00:03]} 49. cxb4 {[%clk 0:00:27]}  Ke6 {[%clk 0:00:03]} 50. Kg5 {[%clk 0:00:26]}  Kf7 {[%clk 0:00:03]} 51. b5 {[%clk 0:00:24]} 1-0


[Site "https://www.chess.com"]

[Event "Titled Tuesday Blitz August 31 2021"]
[White "Heinemann, Josefine"]
[Black "Cunha, Lucas Aguiar"]
[WhiteFideId "12900460"]
[BlackFideId "2125404"]
[WhiteElo "2300"]
[BlackElo "2361"]
[Result "1-0"]
[Round "11"]
[TimeControl "180+1"]
[Date "2021.08.31"]
[WhiteClock "0:01:53"]
[BlackClock "0:00:36"]

1. Nf3 {[%clk 0:03:00]}  d5 {[%clk 0:02:59]} 2. e3 {[%clk 0:02:58]}  Nf6 {[%clk 0:02:59]} 3. c4 {[%clk 0:02:57]}  e6 {[%clk 0:02:58]} 4. Nc3 {[%clk 0:02:57]}  c6 {[%clk 0:02:58]} 5. b3 {[%clk 0:02:58]}  a6 {[%clk 0:02:58]} 6. Bb2 {[%clk 0:02:58]}  b5 {[%clk 0:02:59]} 7. d4 {[%clk 0:02:45]}  Bd6 {[%clk 0:02:57]} 8. Bd3 {[%clk 0:02:42]}  O-O {[%clk 0:02:55]} 9. O-O {[%clk 0:02:42]}  Nbd7 {[%clk 0:02:50]} 10. Qc2 {[%clk 0:02:40]}  Re8 {[%clk 0:02:46]} 11. a4 {[%clk 0:02:32]}  b4 {[%clk 0:02:44]} 12. Ne2 {[%clk 0:02:31]}  a5 {[%clk 0:02:32]} 13. Ng3 {[%clk 0:02:29]}  Bb7 {[%clk 0:02:07]} 14. e4 {[%clk 0:02:23]}  Bxg3 {[%clk 0:02:01]} 15. hxg3 {[%clk 0:02:17]}  dxe4 {[%clk 0:02:02]} 16. Bxe4 {[%clk 0:02:18]}  Nxe4 {[%clk 0:02:00]} 17. Qxe4 {[%clk 0:02:19]}  Qc7 {[%clk 0:01:54]} 18. Rad1 {[%clk 0:02:11]}  c5 {[%clk 0:01:51]} 19. Qf4 {[%clk 0:02:12]}  Qxf4 {[%clk 0:01:42]} 20. gxf4 {[%clk 0:02:13]}  Bxf3 {[%clk 0:01:43]} 21. gxf3 {[%clk 0:02:11]}  cxd4 {[%clk 0:01:40]} 22. Bxd4 {[%clk 0:02:11]}  g6 {[%clk 0:01:35]} 23. Be3 {[%clk 0:02:09]}  Nf6 {[%clk 0:01:22]} 24. Rd6 {[%clk 0:02:05]}  Rec8 {[%clk 0:01:19]} 25. Rfd1 {[%clk 0:02:04]}  Ne8 {[%clk 0:01:17]} 26. Rd7 {[%clk 0:02:03]}  Nf6 {[%clk 0:01:01]} 27. R7d6 {[%clk 0:02:01]}  Nh5 {[%clk 0:00:41]} 28. Kf1 {[%clk 0:01:57]}  Ng7 {[%clk 0:00:38]} 29. Bb6 {[%clk 0:01:54]}  Nf5 {[%clk 0:00:38]} 30. Rd8+ {[%clk 0:01:52]}  Rxd8 {[%clk 0:00:35]} 31. Rxd8+ {[%clk 0:01:53]}  Rxd8 {[%clk 0:00:35]} 32. Bxd8 {[%clk 0:01:54]}  Nd4 {[%clk 0:00:36]} 33. Bxa5 {[%clk 0:01:53]}  Nxb3 {[%clk 0:00:36]} 34. Bxb4 {[%clk 0:01:53]}  f5 {[%clk 0:00:36]} 35. a5 {[%clk 0:01:53]}  Nd4 {[%clk 0:00:35]} 36. a6 {[%clk 0:01:53]}  Nc6 {[%clk 0:00:36]} 37. Bc5 {[%clk 0:01:53]} 1-0


[Site "https://www.chess.com"]

[Event "Titled Tuesday Blitz August 31 2021"]
[White "Jarovinsky, Alexey"]
[Black "Schmakel, Sam"]
[WhiteFideId "14115131"]
[BlackFideId "2039311"]
[WhiteElo "2446"]
[BlackElo "2356"]
[Result "0-1"]
[Round "11"]
[TimeControl "180+1"]
[Date "2021.08.31"]
[WhiteClock "0:00:54"]
[BlackClock "0:00:04"]

1. Nc3 {[%clk 0:03:00]}  Nf6 {[%clk 0:02:55]} 2. e4 {[%clk 0:02:52]}  e5 {[%clk 0:02:54]} 3. f4 {[%clk 0:02:51]}  d5 {[%clk 0:02:54]} 4. fxe5 {[%clk 0:02:52]}  Nxe4 {[%clk 0:02:55]} 5. Qf3 {[%clk 0:02:52]}  Nc6 {[%clk 0:02:55]} 6. Bb5 {[%clk 0:02:51]}  Nxc3 {[%clk 0:02:42]} 7. dxc3 {[%clk 0:02:52]}  Qh4+ {[%clk 0:02:18]} 8. g3 {[%clk 0:02:51]}  Qe4+ {[%clk 0:02:18]} 9. Qxe4 {[%clk 0:02:51]}  dxe4 {[%clk 0:02:19]} 10. Ne2 {[%clk 0:02:46]}  Bd7 {[%clk 0:02:12]} 11. Bf4 {[%clk 0:02:35]}  O-O-O {[%clk 0:02:09]} 12. O-O-O {[%clk 0:02:26]}  Nxe5 {[%clk 0:02:00]} 13. Bxd7+ {[%clk 0:02:26]}  Nxd7 {[%clk 0:02:01]} 14. Rd4 {[%clk 0:02:17]}  Nc5 {[%clk 0:01:42]} 15. Rhd1 {[%clk 0:02:09]}  Ne6 {[%clk 0:01:17]} 16. Rxe4 {[%clk 0:02:07]}  Rxd1+ {[%clk 0:01:16]} 17. Kxd1 {[%clk 0:02:08]}  Bd6 {[%clk 0:01:05]} 18. Bxd6 {[%clk 0:02:06]}  Rd8 {[%clk 0:01:05]} 19. Nd4 {[%clk 0:02:04]}  Rxd6 {[%clk 0:01:05]} 20. Ke2 {[%clk 0:02:04]}  Kd7 {[%clk 0:00:58]} 21. Nf5 {[%clk 0:02:00]}  Ra6 {[%clk 0:00:51]} 22. a3 {[%clk 0:01:58]}  g6 {[%clk 0:00:48]} 23. Ne3 {[%clk 0:01:58]}  f5 {[%clk 0:00:46]} 24. Rc4 {[%clk 0:01:47]}  Rb6 {[%clk 0:00:38]} 25. b4 {[%clk 0:01:40]}  Ra6 {[%clk 0:00:37]} 26. g4 {[%clk 0:01:38]}  b5 {[%clk 0:00:15]} 27. gxf5 {[%clk 0:01:29]}  bxc4 {[%clk 0:00:16]} 28. fxe6+ {[%clk 0:01:30]}  Rxe6 {[%clk 0:00:17]} 29. Kf3 {[%clk 0:01:28]}  Rf6+ {[%clk 0:00:17]} 30. Ke2 {[%clk 0:01:25]}  Kc6 {[%clk 0:00:08]} 31. Nxc4 {[%clk 0:01:25]}  Kb5 {[%clk 0:00:09]} 32. Ne3 {[%clk 0:01:22]}  Ka4 {[%clk 0:00:06]} 33. Nd5 {[%clk 0:01:20]}  Rf7 {[%clk 0:00:06]} 34. c4 {[%clk 0:01:18]}  Kxa3 {[%clk 0:00:06]} 35. b5 {[%clk 0:01:16]}  Ka4 {[%clk 0:00:06]} 36. Kd3 {[%clk 0:01:15]}  Ka5 {[%clk 0:00:06]} 37. Kd4 {[%clk 0:01:14]}  a6 {[%clk 0:00:05]} 38. Kc5 {[%clk 0:01:05]}  axb5 {[%clk 0:00:04]} 39. cxb5 {[%clk 0:01:05]}  Rf2 {[%clk 0:00:04]} 40. c4 {[%clk 0:01:05]}  Rxh2 {[%clk 0:00:04]} 41. Nxc7 {[%clk 0:01:05]}  Rb2 {[%clk 0:00:04]} 42. Kc6 {[%clk 0:00:58]}  h5 {[%clk 0:00:04]} 43. c5 {[%clk 0:00:58]}  h4 {[%clk 0:00:04]} 44. b6 {[%clk 0:00:59]}  h3 {[%clk 0:00:05]} 45. Nd5 {[%clk 0:00:54]}  h2 {[%clk 0:00:04]} 46. b7 {[%clk 0:00:54]}  h1=Q {[%clk 0:00:04]} 0-1


[Site "https://www.chess.com"]

[Event "Titled Tuesday Blitz August 31 2021"]
[White "Karthikeyan, Murali"]
[Black "Pert, Richard G"]
[WhiteFideId "5074452"]
[BlackFideId "404748"]
[WhiteElo "2564"]
[BlackElo "2441"]
[Result "1-0"]
[Round "11"]
[TimeControl "180+1"]
[Date "2021.08.31"]
[WhiteClock "0:00:04"]
[BlackClock "0:00:02"]

1. f4 {[%clk 0:03:00]}  g5 {[%clk 0:02:54]} 2. fxg5 {[%clk 0:02:59]}  h6 {[%clk 0:02:54]} 3. d4 {[%clk 0:02:56]}  hxg5 {[%clk 0:02:50]} 4. Bxg5 {[%clk 0:02:56]}  Bh6 {[%clk 0:02:48]} 5. Qd2 {[%clk 0:02:53]}  c5 {[%clk 0:02:45]} 6. Nf3 {[%clk 0:02:49]}  cxd4 {[%clk 0:02:43]} 7. Qxd4 {[%clk 0:02:48]}  f6 {[%clk 0:02:39]} 8. Nc3 {[%clk 0:02:47]}  Bxg5 {[%clk 0:02:21]} 9. Nxg5 {[%clk 0:02:45]}  Nc6 {[%clk 0:02:21]} 10. Qe4 {[%clk 0:02:20]}  fxg5 {[%clk 0:02:20]} 11. Qg6+ {[%clk 0:02:19]}  Kf8 {[%clk 0:02:20]} 12. Qxg5 {[%clk 0:02:20]}  Nf6 {[%clk 0:02:18]} 13. O-O-O {[%clk 0:02:19]}  Qa5 {[%clk 0:02:07]} 14. Qf4 {[%clk 0:02:11]}  Qe5 {[%clk 0:01:55]} 15. Qd2 {[%clk 0:01:58]}  Ng4 {[%clk 0:01:35]} 16. e4 {[%clk 0:01:53]}  Qd6 {[%clk 0:01:15]} 17. Qxd6 {[%clk 0:01:42]}  exd6 {[%clk 0:01:15]} 18. Be2 {[%clk 0:01:29]}  Nge5 {[%clk 0:01:07]} 19. Rxd6 {[%clk 0:01:26]}  Kg7 {[%clk 0:00:59]} 20. h4 {[%clk 0:01:08]}  Nf7 {[%clk 0:00:59]} 21. Rdd1 {[%clk 0:00:46]}  d6 {[%clk 0:00:58]} 22. g4 {[%clk 0:00:46]}  Nce5 {[%clk 0:00:56]} 23. g5 {[%clk 0:00:45]}  Bg4 {[%clk 0:00:55]} 24. Rdf1 {[%clk 0:00:37]}  Bxe2 {[%clk 0:00:50]} 25. Nxe2 {[%clk 0:00:38]}  Rae8 {[%clk 0:00:45]} 26. Nd4 {[%clk 0:00:37]}  Ng4 {[%clk 0:00:34]} 27. Rf4 {[%clk 0:00:35]}  Nfe5 {[%clk 0:00:32]} 28. h5 {[%clk 0:00:34]}  Ne3 {[%clk 0:00:27]} 29. Rh3 {[%clk 0:00:28]}  N3c4 {[%clk 0:00:14]} 30. b3 {[%clk 0:00:26]}  Nb6 {[%clk 0:00:12]} 31. Rf6 {[%clk 0:00:26]}  Rhf8 {[%clk 0:00:11]} 32. Nf5+ {[%clk 0:00:24]}  Kg8 {[%clk 0:00:10]} 33. Rxd6 {[%clk 0:00:24]}  Nbd7 {[%clk 0:00:09]} 34. Rc3 {[%clk 0:00:21]}  b6 {[%clk 0:00:09]} 35. Rc7 {[%clk 0:00:21]}  Rd8 {[%clk 0:00:08]} 36. g6 {[%clk 0:00:17]}  Rf6 {[%clk 0:00:05]} 37. Rxf6 {[%clk 0:00:09]}  Nxf6 {[%clk 0:00:06]} 38. h6 {[%clk 0:00:10]}  Neg4 {[%clk 0:00:05]} 39. Rg7+ {[%clk 0:00:05]}  Kh8 {[%clk 0:00:04]} 40. Rf7 {[%clk 0:00:05]}  Kg8 {[%clk 0:00:04]} 41. Ne7+ {[%clk 0:00:04]}  Kh8 {[%clk 0:00:04]} 42. g7+ {[%clk 0:00:05]}  Kh7 {[%clk 0:00:04]} 43. g8=Q+ {[%clk 0:00:06]}  Kxh6 {[%clk 0:00:03]} 44. Qg7+ {[%clk 0:00:04]}  Kh5 {[%clk 0:00:04]} 45. Qg6+ {[%clk 0:00:04]}  Kh4 {[%clk 0:00:04]} 46. Rxf6 {[%clk 0:00:05]}  Ne3 {[%clk 0:00:02]} 47. Nf5+ {[%clk 0:00:05]}  Kh3 {[%clk 0:00:02]} 48. Qg3# {[%clk 0:00:04]} 1-0


[Site "https://www.chess.com"]

[Event "Titled Tuesday Blitz August 31 2021"]
[White "Karttunen, Mika"]
[Black "Ogloblin, Nikolay"]
[WhiteFideId "502081"]
[BlackFideId "4139658"]
[WhiteElo "2343"]
[BlackElo "2265"]
[Result "1-0"]
[Round "11"]
[TimeControl "180+1"]
[Date "2021.08.31"]
[WhiteClock "0:00:22"]
[BlackClock "0:01:43"]

1. d4 {[%clk 0:03:00]}  Nf6 {[%clk 0:02:59]} 2. c4 {[%clk 0:02:58]}  e6 {[%clk 0:02:59]} 3. g3 {[%clk 0:02:55]}  d5 {[%clk 0:02:58]} 4. Bg2 {[%clk 0:02:54]}  Be7 {[%clk 0:02:59]} 5. Nf3 {[%clk 0:02:54]}  O-O {[%clk 0:02:59]} 6. O-O {[%clk 0:02:55]}  dxc4 {[%clk 0:02:59]} 7. Ne5 {[%clk 0:02:51]}  Nc6 {[%clk 0:02:59]} 8. Nxc6 {[%clk 0:02:51]}  bxc6 {[%clk 0:02:59]} 9. Na3 {[%clk 0:02:50]}  Bxa3 {[%clk 0:02:58]} 10. bxa3 {[%clk 0:02:50]}  Ba6 {[%clk 0:02:59]} 11. Qa4 {[%clk 0:02:39]}  Bb5 {[%clk 0:02:59]} 12. Qc2 {[%clk 0:02:23]}  Qxd4 {[%clk 0:02:56]} 13. Be3 {[%clk 0:01:52]}  Qe5 {[%clk 0:02:55]} 14. a4 {[%clk 0:01:41]}  Ba6 {[%clk 0:02:55]} 15. Bxc6 {[%clk 0:01:34]}  Rad8 {[%clk 0:02:50]} 16. Rad1 {[%clk 0:01:18]}  Nd5 {[%clk 0:02:49]} 17. Bc5 {[%clk 0:01:14]}  Nc3 {[%clk 0:02:41]} 18. Bxf8 {[%clk 0:01:06]}  Rxd1 {[%clk 0:02:39]} 19. Rxd1 {[%clk 0:01:06]}  Nxe2+ {[%clk 0:02:29]} 20. Kg2 {[%clk 0:00:53]}  Kxf8 {[%clk 0:02:27]} 21. Rd8+ {[%clk 0:00:36]}  Ke7 {[%clk 0:02:27]} 22. Rd7+ {[%clk 0:00:36]}  Kf6 {[%clk 0:02:26]} 23. Qxh7 {[%clk 0:00:28]}  Qf5 {[%clk 0:02:08]} 24. Qh4+ {[%clk 0:00:25]}  g5 {[%clk 0:01:55]} 25. Qh8+ {[%clk 0:00:25]}  Kg6 {[%clk 0:01:55]} 26. f3 {[%clk 0:00:25]}  Nc3 {[%clk 0:01:48]} 27. Qg8+ {[%clk 0:00:23]}  Kh6 {[%clk 0:01:44]} 28. Rxf7 {[%clk 0:00:21]}  Qc2+ {[%clk 0:01:43]} 29. Kh3 {[%clk 0:00:22]} 1-0


[Site "https://www.chess.com"]

[Event "Titled Tuesday Blitz August 31 2021"]
[White "Krysa, Leandro"]
[Black "Ivanchuk, Vasyl"]
[WhiteFideId "116807"]
[BlackFideId "14100010"]
[WhiteElo "2490"]
[BlackElo "2710"]
[Result "1/2-1/2"]
[Round "11"]
[TimeControl "180+1"]
[Date "2021.08.31"]
[WhiteClock "0:00:06"]
[BlackClock "0:00:04"]

1. c4 {[%clk 0:03:00]}  Nf6 {[%clk 0:02:59]} 2. Nc3 {[%clk 0:03:00]}  g6 {[%clk 0:02:59]} 3. d4 {[%clk 0:02:56]}  Bg7 {[%clk 0:02:57]} 4. e4 {[%clk 0:02:56]}  d6 {[%clk 0:02:57]} 5. Nf3 {[%clk 0:02:56]}  O-O {[%clk 0:02:57]} 6. Be2 {[%clk 0:02:56]}  e5 {[%clk 0:02:57]} 7. Be3 {[%clk 0:02:56]}  c6 {[%clk 0:02:56]} 8. d5 {[%clk 0:02:48]}  Ng4 {[%clk 0:02:53]} 9. Bg5 {[%clk 0:02:46]}  f6 {[%clk 0:02:53]} 10. Bc1 {[%clk 0:02:43]}  Na6 {[%clk 0:02:40]} 11. O-O {[%clk 0:02:33]}  Nh6 {[%clk 0:02:31]} 12. dxc6 {[%clk 0:02:19]}  bxc6 {[%clk 0:02:30]} 13. Qa4 {[%clk 0:02:16]}  Nc5 {[%clk 0:01:50]} 14. Qxc6 {[%clk 0:01:56]}  Bb7 {[%clk 0:01:50]} 15. Qb5 {[%clk 0:01:54]}  a5 {[%clk 0:01:50]} 16. Nd5 {[%clk 0:01:40]}  Ba6 {[%clk 0:01:30]} 17. Qb6 {[%clk 0:01:27]}  Nxe4 {[%clk 0:01:09]} 18. Qxd8 {[%clk 0:00:51]}  Raxd8 {[%clk 0:01:09]} 19. Rd1 {[%clk 0:00:49]}  Bb7 {[%clk 0:01:04]} 20. b3 {[%clk 0:00:46]}  Bxd5 {[%clk 0:00:53]} 21. Rxd5 {[%clk 0:00:45]}  Nc3 {[%clk 0:00:53]} 22. Rd2 {[%clk 0:00:46]}  Nxe2+ {[%clk 0:00:50]} 23. Rxe2 {[%clk 0:00:46]}  d5 {[%clk 0:00:50]} 24. cxd5 {[%clk 0:00:42]}  Rxd5 {[%clk 0:00:50]} 25. Bb2 {[%clk 0:00:31]}  Rfd8 {[%clk 0:00:45]} 26. Bc3 {[%clk 0:00:29]}  Bf8 {[%clk 0:00:29]} 27. Rd2 {[%clk 0:00:23]}  Bb4 {[%clk 0:00:24]} 28. Bxb4 {[%clk 0:00:17]}  axb4 {[%clk 0:00:23]} 29. Rxd5 {[%clk 0:00:17]}  Rxd5 {[%clk 0:00:23]} 30. Kf1 {[%clk 0:00:17]}  Nf5 {[%clk 0:00:20]} 31. Ke1 {[%clk 0:00:17]}  Nd6 {[%clk 0:00:18]} 32. Rd1 {[%clk 0:00:15]}  Rxd1+ {[%clk 0:00:18]} 33. Kxd1 {[%clk 0:00:16]}  Ne4 {[%clk 0:00:15]} 34. Ne1 {[%clk 0:00:11]}  Nxf2+ {[%clk 0:00:14]} 35. Kc2 {[%clk 0:00:11]}  e4 {[%clk 0:00:10]} 36. Kd2 {[%clk 0:00:10]}  f5 {[%clk 0:00:10]} 37. Ke3 {[%clk 0:00:08]}  Ng4+ {[%clk 0:00:09]} 38. Kf4 {[%clk 0:00:07]}  Nxh2 {[%clk 0:00:08]} 39. Nc2 {[%clk 0:00:07]}  Kf7 {[%clk 0:00:08]} 40. Nxb4 {[%clk 0:00:08]}  Ke6 {[%clk 0:00:09]} 41. a4 {[%clk 0:00:08]}  Ng4 {[%clk 0:00:08]} 42. a5 {[%clk 0:00:08]}  Kd6 {[%clk 0:00:08]} 43. a6 {[%clk 0:00:08]}  Kc7 {[%clk 0:00:08]} 44. Nd5+ {[%clk 0:00:08]}  Kb8 {[%clk 0:00:07]} 45. b4 {[%clk 0:00:09]}  e3 {[%clk 0:00:05]} 46. Nxe3 {[%clk 0:00:06]}  g5+ {[%clk 0:00:05]} 47. Kxf5 {[%clk 0:00:04]}  Nxe3+ {[%clk 0:00:04]} 48. Kxg5 {[%clk 0:00:05]}  Nxg2 {[%clk 0:00:04]} 49. Kh6 {[%clk 0:00:05]}  Ne3 {[%clk 0:00:04]} 50. Kxh7 {[%clk 0:00:05]}  Nd5 {[%clk 0:00:05]} 51. a7+ {[%clk 0:00:05]}  Kxa7 {[%clk 0:00:04]} 52. b5 {[%clk 0:00:06]}  Kb6 {[%clk 0:00:04]} 53. Kg6 {[%clk 0:00:06]}  Kxb5 {[%clk 0:00:04]} 1/2-1/2


[Site "https://www.chess.com"]